bitfinex-derivatives/quotes_ETHF0:USTF0_20251008
["timestamp","ask_amount","ask_price","bid_price","bid_amount"]
[1759897143271,0.71716917,4452.9,4452.8,2.5918991]
[1759897143571,1.20956917,4452.9,4452.8,1.6572991]
[1759897143770,1.20956917,4452.9,4452.8,2.1516991]
[1759897144868,0.71716917,4452.9,4452.8,2.5918991]
[1759897145070,0.71716917,4452.9,4452.8,2.40122315]
[1759897145273,0.00256917,4452.9,4452.8,2.40122315]
[1759897146466,0.00256917,4452.9,4452.8,7.40122315]
[1759897148372,0.00256917,4452.9,4452.8,8.60232409]
[1759897148569,0.00256917,4452.9,4452.8,7.40122315]
[1759897148871,0.00256917,4452.9,4452.8,8.60162524]
[1759897149467,0.7489,4453.3,4452.8,8.60162524]
[1759897149675,0.7489,4453.8,4453.7,1.3887]
[1759897149864,3.61173,4453.9,4453.7,2.7325463]
[1759897150067,3.61173,4453.9,4453.8,1.7132]
[1759897150467,3.61406841,4453.9,4453.8,1.7132]
[1759897151074,4.57166841,4453.9,4453.8,1.7132]
[1759897151264,4.57166841,4453.9,4453.0,0.1084]
[1759897151265,0.2909,4453.5,4453.1,0.9683]
[1759897151479,3.2078,4453.5,4453.4,2.48232315]
[1759897151675,3.2078,4453.5,4453.4,2.70832315]
[1759897152071,0.40397,4453.6,4453.4,2.70832315]
[1759897152277,0.40397,4453.6,4453.5,1.7132]
[1759897152473,0.00233841,4453.9,4453.5,2.0149]
[1759897152673,1.24273841,4453.9,4453.8,2.48232315]
[1759897153175,1.70883841,4453.9,4453.8,0.99512315]
[1759897153377,1.70883841,4453.9,4453.8,0.76912315]
[1759897154173,1.2404,4452.8,4452.7,2.91360209]
[1759897154367,1.2404,4452.8,4452.7,2.1152377]
[1759897154774,1.7065,4452.8,4452.7,0.9683]
[1759897154974,0.40407,4452.4,4452.3,3.9527]
[1759897155173,1.64447,4452.4,4452.3,1.9392]
[1759897156079,1.7065,4452.4,4452.0,1.20040209]
[1759897156373,2.11057,4452.4,4452.3,1.27542315]
[1759897156573,2.11057,4452.4,4452.3,2.48232315]
[1759897156980,2.11057,4452.4,4452.3,1.73742315]
[1759897157879,2.11057,4452.4,4452.3,1.27542315]
[1759897158478,0.69501,4452.0,4451.9,0.76912315]
[1759897158674,0.2909,4452.5,4451.9,2.70832315]
[1759897158877,0.40404,4452.8,4452.7,1.7132]
[1759897159077,4.85221,4453.1,4453.0,0.9683]
[1759897159272,4.85221,4453.1,4453.0,1.9392]
[1759897159477,5.31831,4453.1,4453.0,2.70832315]
[1759897159679,5.31831,4453.1,4453.0,0.99512315]
[1759897159878,5.31831,4453.1,4453.0,0.76912315]
[1759897160081,5.31831,4453.1,4451.5,41.1017]
[1759897160082,2.11053,4452.8,4452.7,0.76912315]
[1759897160276,1.7065,4452.6,4452.5,0.99512315]
[1759897160475,0.4915,4452.7,4452.6,0.7449]
[1759897160683,0.89554,4452.7,4452.6,1.7132]
[1759897160878,2.11054,4452.7,4452.6,0.9683]
[1759897161381,1.36164,4452.7,4452.5,0.99512315]
[1759897161582,1.7065,4452.6,4452.5,0.99512315]
[1759897161880,4.4482,4453.1,4453.0,0.9683]
[1759897162081,2.40142,4453.0,4452.9,0.76912315]
[1759897162675,2.40142,4453.0,4452.6,0.76912315]
[1759897162676,2.11054,4452.7,4452.6,0.76912315]
[1759897162882,0.40409,4452.2,4452.1,3.2078]
[1759897163080,0.40409,4452.2,4452.1,3.7141]
[1759897163081,2.11059,4452.2,4452.1,3.7141]
[1759897163284,2.11059,4452.2,4452.1,4.921]
[1759897163579,0.40404,4452.8,4452.7,0.9683]
[1759897163777,0.89553,4452.9,4452.8,1.7132]
[1759897163984,2.11053,4452.9,4452.8,0.5063]
[1759897164177,2.11053,4452.9,4452.7,0.99512315]
[1759897164380,1.7065,4452.8,4452.7,1.50142315]
[1759897164583,0.4915,4452.8,4452.7,2.70832315]
[1759897165186,0.40403,4452.9,4452.8,1.7132]
[1759897165387,0.89553,4452.9,4452.8,1.7132]
[1759897166589,1.64443,4452.9,4452.8,1.7132]
[1759897167582,2.11053,4452.9,4452.8,0.9683]
[1759897167783,0.7489,4453.0,4452.9,1.7132]
[1759897167987,3.61181,4453.1,4453.0,1.7132]
[1759897168289,4.85221,4453.1,4453.0,2.48232315]
[1759897168884,5.31831,4453.1,4453.0,1.27542315]
[1759897169184,1.7065,4454.4,4454.3,0.5063]
[1759897169380,2.11039,4454.4,4454.3,1.27542315]
[1759897169583,0.40389,4454.5,4454.3,2.48232315]
[1759897169780,0.40389,4454.5,4454.4,0.7449]
[1759897169981,0.7489,4454.7,4454.4,1.7132]
[1759897170295,0.00184736,4454.7,4454.6,2.48232315]
[1759897170490,0.00184736,4454.7,4454.6,2.48506104]
[1759897170988,1.24224736,4454.7,4454.6,2.48506104]
[1759897171290,1.70834736,4454.7,4454.6,1.74016104]
[1759897171789,1.70834736,4454.7,4454.6,0.00273789]
[1759897172994,6.51987051,4454.7,4454.6,0.00273789]
[1759897173193,5.75074736,4454.7,4454.6,0.00273789]
[1759897173390,0.97674736,4454.7,4454.6,0.77186104]
[1759897174189,0.2909,4454.0,4453.4,4.40705363]
[1759897174390,0.40395,4453.8,4453.7,1.51402315]
[1759897175188,0.40395,4453.8,4453.7,1.51592557]
[1759897175890,0.40395,4453.8,4453.7,2.48082557]
[1759897180201,1.62815,4453.8,4453.7,2.70682557]
[1759897180798,1.2198,4453.8,4453.7,2.70202557]
[1759897182004,0.4879,4453.8,4453.7,2.70202557]
[1759897182506,0.40394,4453.9,4453.7,1.96192557]
[1759897182700,0.40394,4453.9,4453.8,1.7022]
[1759897183605,1.62374,4453.9,4453.8,1.7022]
[1759897184106,2.10094,4453.9,4453.8,0.226]
[1759897184304,2.10094,4453.9,4453.8,0.99512315]
[1759897184896,2.10094,4453.9,4453.8,1.48512315]
[1759897185709,2.10094,4453.9,4453.8,0.99512315]
[1759897186208,2.10094,4453.9,4453.8,1.95722315]
[1759897186410,0.40394,4453.9,4453.8,2.69732315]
[1759897186612,0.40393,4454.0,4453.9,0.7401]
[1759897186816,0.40393,4454.0,4453.9,2.47132315]
[1759897187013,0.40393,4454.0,4453.9,5.67912315]
[1759897187911,1.62373,4454.0,4453.9,5.67912315]
[1759897188509,2.10093,4454.0,4453.9,5.67912315]
[1759897188708,2.39023,4454.0,4453.9,4.93902315]
[1759897189209,2.10093,4454.0,4453.9,5.67912315]
[1759897189411,1.62373,4454.0,4453.9,5.67912315]
[1759897189716,0.40393,4454.0,4453.9,5.67912315]
[1759897190109,0.40392,4454.1,4454.0,2.006]
[1759897190309,0.40392,4454.1,4454.0,2.232]
[1759897190511,0.4039,4454.3,4454.2,0.9621]
[1759897190706,2.1009,4454.3,4454.2,1.95722315]
[1759897190919,2.1009,4454.3,4454.2,2.69732315]
[1759897191506,0.4879,4454.3,4454.2,2.69732315]
[1759897191712,1.62367,4454.6,4454.5,0.9621]
[1759897191913,2.10087,4454.6,4454.5,1.7022]
[1759897192214,2.10087,4454.6,4454.5,2.47132315]
[1759897192614,2.10087,4454.6,4454.5,1.73122315]
[1759897193816,2.10087,4454.6,4454.5,1.25912315]
[1759897194713,1.369,4454.3,4454.2,1.48512315]
[1759897195010,2.1009,4454.3,4454.2,0.49]
[1759897195214,1.697,4453.8,4453.7,0.00190242]
[1759897195414,1.923,4453.8,4453.7,0.00190242]
[1759897195611,9.81231763,4453.8,4453.7,0.00190242]
[1759897196110,1.923,4453.8,4453.7,0.00190242]
[1759897196307,6.923,4453.8,4453.7,0.00190242]
[1759897197018,9.85594867,4453.8,4453.7,0.00190242]
[1759897197408,8.89084867,4453.8,4453.1,1.19925363]
[1759897197617,0.7319,4453.1,4453.0,3.0270357]
[1759897197814,1.697,4453.1,4453.0,1.19925363]
[1759897198505,0.40395,4453.7,4453.5,0.9621]
[1759897198705,1.62375,4453.7,4453.6,2.47132315]
[1759897198914,2.10095,4453.7,4453.6,1.73122315]
[1759897199220,2.10095,4453.7,4453.6,0.76912315]
[1759897199414,1.2198,4453.6,4453.5,3.2078]
[1759897199616,1.697,4453.6,4453.5,3.2078]
[1759897199816,0.9651,4453.4,4453.3,0.76912315]
[1759897200018,1.697,4453.4,4453.3,0.76912315]
[1759897200317,2.10099,4453.3,4453.2,2.90533984]
[1759897200711,2.10099,4453.3,4453.2,1.7022]
[1759897201417,2.10099,4453.3,4453.2,2.47132315]
[1759897202919,2.10099,4453.3,4453.2,0.76912315]
[1759897203114,2.10099,4453.3,4453.2,1.9738206]
[1759897203314,2.10099,4453.3,4453.2,2.9359206]
[1759897203515,2.10099,4453.3,4453.2,3.6760206]
[1759897203811,2.10099,4453.3,4453.2,1.69469745]
[1759897204012,1.36911,4453.1,4453.0,4.41509276]
[1759897204211,2.10101,4453.1,4453.0,4.41509276]
[1759897204516,2.10101,4453.1,4453.0,3.21039531]
[1759897205207,2.10101,4453.1,4453.0,3.70039531]
[1759897206013,2.10101,4453.1,4453.0,3.21039531]
[1759897207011,2.10101,4453.1,4453.0,0.00259531]
[1759897207611,1.38089,4452.2,4452.1,1.78666796]
[1759897207817,2.13969,4452.2,4452.1,0.226]
[1759897208619,2.13969,4452.2,4452.1,0.22817641]
[1759897209222,2.13969,4452.2,4452.1,1.91437641]
[1759897209420,1.66839,4452.2,4452.1,1.91437641]
[1759897209714,1.66839,4452.2,4452.1,3.52317252]
[1759897209915,3.2078,4452.8,4452.1,8.74917252]
[1759897210117,0.2893,4453.5,4453.2,1.6862]
[1759897210118,4.4721,4453.3,4453.2,1.6862]
[1759897210318,3.7133,4453.3,4453.2,2.64473344]
[1759897211014,4.4721,4453.3,4453.2,2.64473344]
[1759897211513,4.9434,4453.3,4453.2,1.94103344]
[1759897211709,1.2643,4453.3,4453.2,2.64473344]
[1759897212617,0.40396,4453.7,4453.6,1.6862]
[1759897212820,1.66826,4453.7,4453.6,1.6862]
[1759897213214,0.9848,4454.3,4453.7,0.7037]
[1759897213516,0.9848,4454.3,4453.7,0.9297]
[1759897213719,1.66824,4453.9,4453.8,1.6862]
[1759897216818,1.66824,4453.9,4453.3,1.20469745]
[1759897216819,2.1396,4453.2,4453.1,1.20469745]
[1759897217024,0.7588,4453.1,4453.0,4.63849745]
[1759897217321,1.7356,4453.1,4453.0,5.62099745]
[1759897217518,0.404,4453.2,4453.0,6.32469745]
[1759897217717,1.66824,4453.8,4453.7,0.9825]
[1759897217918,1.66824,4453.8,4453.7,1.6862]
[1759897218116,1.2643,4453.8,4453.7,1.6862]
[1759897219116,1.7356,4454.2,4454.1,1.6862]
[1759897219321,1.16267,4454.6,4454.5,0.9825]
[1759897219519,0.40387,4454.6,4454.5,2.64473344]
[1759897219713,0.90937,4454.6,4454.5,2.64473344]
[1759897219917,1.66817,4454.6,4454.5,2.64473344]
[1759897220820,2.13947,4454.6,4454.5,0.9825]
[1759897221025,2.13947,4454.6,4454.5,1.6862]
[1759897222421,0.40387,4454.6,4454.5,1.6862]
[1759897222627,0.40387,4454.6,4454.5,1.9619]
[1759897224629,1.66817,4454.6,4454.5,1.6862]
[1759897225326,0.00184736,4454.7,4454.6,1.6862]
[1759897225530,0.00184736,4454.7,4454.6,5.12]
[1759897225926,1.26614736,4454.7,4454.6,5.12]
[1759897229434,0.00184736,4454.7,4454.6,5.12]
[1759897229828,0.50734736,4454.7,4454.6,5.12]
[1759897230121,1.26614736,4454.7,4454.6,5.12]
[1759897230725,1.73744736,4454.7,4454.6,4.4163]
[1759897231322,1.73744736,4454.7,4454.6,5.12]
[1759897232528,0.50734736,4454.7,4454.6,5.12]
[1759897232734,0.00184736,4454.7,4454.6,10.12]
[1759897234440,1.38071,4454.2,4454.0,3.2078]
[1759897234729,0.9768,4453.4,4453.3,0.5036]
[1759897234932,1.7356,4453.4,4453.3,1.68813344]
[1759897236338,1.7356,4453.4,4453.3,2.91493344]
[1759897237529,0.70107,4453.5,4453.4,1.6813]
[1759897237530,0.40397,4453.5,4453.4,1.6813]
[1759897237729,1.57957,4453.5,4453.4,1.6813]
[1759897239734,0.40397,4453.5,4453.4,1.6813]
[1759897240531,1.52777,4453.5,4453.4,1.6813]
[1759897241134,1.52777,4453.5,4453.4,2.63983344]
[1759897242539,1.52777,4453.5,4453.4,3.8418401]
[1759897243030,0.85457,4453.5,4453.4,3.8418401]
[1759897243231,0.40397,4453.5,4453.4,3.8418401]
[1759897243434,0.85457,4453.5,4453.4,3.8418401]
[1759897243737,1.97617,4453.5,4453.4,3.8418401]
[1759897245232,2.26617,4453.5,4453.3,1.42800666]
[1759897245434,1.97619,4453.3,4453.2,1.20200666]
[1759897245738,2.26621,4453.0,4452.9,3.2078]
[1759897246940,1.1238,4453.5,4453.4,0.9331]
[1759897247138,0.9703,4454.0,4453.7,0.9331]
[1759897247343,0.226,4454.2,4453.8,1.6049]
[1759897247344,0.85454,4453.9,4453.8,1.6049]
[1759897247639,1.52774,4453.9,4453.8,1.6049]
[1759897247938,1.97614,4453.9,4453.8,0.4887]
[1759897248139,1.97614,4453.9,4453.7,0.226]
[1759897248443,1.5722,4453.8,4453.7,0.226]
[1759897248735,0.40397,4453.5,4453.4,4.40980666]
[1759897248935,1.97617,4453.5,4453.4,5.12450666]
[1759897249130,2.26617,4453.5,4453.4,3.9225]
[1759897249842,1.30299,4453.3,4453.2,1.20200666]
[1759897250141,1.97619,4453.3,4453.2,0.226]
[1759897250846,1.97621,4453.1,4453.0,2.13510666]
[1759897251141,1.97621,4453.1,4453.0,2.36110666]
[1759897251943,1.5722,4453.1,4453.0,3.03290666]
[1759897253144,1.5722,4453.1,4453.0,2.36110666]
[1759897253541,1.5722,4453.1,4453.0,1.42800666]
[1759897254239,1.5722,4453.1,4453.0,1.91670666]
[1759897255243,0.404,4453.2,4453.1,1.6049]
[1759897255543,0.8546,4453.2,4453.1,1.6049]
[1759897255743,0.8546,4453.2,4453.1,0.9331]
[1759897255744,1.9762,4453.2,4453.1,0.9331]
[1759897255946,1.9762,4453.2,4453.1,0.4887]
[1759897256746,0.85241,4453.0,4452.9,1.20200666]
[1759897256940,1.97623,4452.8,4452.7,1.20200666]
[1759897257142,1.97623,4452.8,4452.6,1.42800666]
[1759897257447,1.97623,4452.8,4452.4,3.2078]
[1759897257448,1.8622,4452.5,4452.4,3.2078]
[1759897258648,6.8622,4452.5,4452.4,3.2078]
[1759897259351,1.97629,4452.2,4452.1,0.00217641]
[1759897259947,6.97629,4452.2,4452.1,0.00217641]
[1759897260146,7.20229,4452.2,4452.1,0.00217641]
[1759897261148,1.30314,4451.6,4451.5,1.69070666]
[1759897261449,1.97634,4451.6,4451.5,0.7147]
[1759897261644,1.30316,4451.4,4451.3,4.89850666]
[1759897261848,1.97636,4451.4,4451.3,4.89850666]
[1759897262245,1.9789318,4451.4,4451.3,3.69863736]
[1759897262942,0.0025718,4451.4,4451.3,4.81483736]
[1759897263143,5.18408,4452.3,4452.2,0.4887]
[1759897263544,1.52791,4451.9,4451.8,2.34503344]
[1759897263748,1.97631,4451.9,4451.8,0.226]
[1759897263943,1.97631,4451.9,4451.3,3.20993736]
[1759897263944,1.5722,4451.4,4451.3,5.12656806]
[1759897264143,1.57437957,4451.4,4451.3,5.3275708]
[1759897264348,1.57437957,4451.4,4451.3,5.9993708]
[1759897264548,0.00217957,4451.4,4451.3,5.9993708]
[1759897266645,0.00217957,4451.4,4451.3,5.04083736]
[1759897266846,0.00217957,4451.4,4451.3,5.9993708]
[1759897267042,0.00217957,4451.4,4451.3,5.81046459]
[1759897267750,0.00217957,4451.4,4451.3,7.01239529]
[1759897268057,0.00217957,4451.4,4451.3,10.81046459]
[1759897268252,1.58474,4452.7,4452.6,0.4513]
[1759897268448,1.58474,4452.7,4452.6,1.22092723]
[1759897268648,0.85304,4452.7,4452.6,2.63322723]
[1759897268852,0.40404,4452.7,4452.6,2.63322723]
[1759897269253,0.40619581,4452.7,4452.6,2.63322723]
[1759897269651,0.00215581,4452.7,4452.6,7.63322723]
[1759897269853,3.03322171,4453.4,4453.3,1.6376]
[1759897270052,0.40397,4453.5,4453.3,1.92482723]
[1759897270254,0.40397,4453.5,4453.4,1.6376]
[1759897270757,0.40658724,4453.5,4453.4,1.6376]
[1759897271057,6.01111724,4453.5,4452.8,1.19824226]
[1759897271260,2.03242,4452.9,4452.8,0.4513]
[1759897271557,1.1807,4452.9,4452.8,1.6376]
[1759897272359,0.40402,4453.0,4452.8,1.6376]
[1759897272652,0.40402,4453.0,4452.9,1.3857]
[1759897272653,0.85302,4453.0,4452.9,1.3857]
[1759897272957,1.58472,4453.0,4452.9,1.8636]
[1759897274052,2.03242,4453.0,4452.9,0.9292]
[1759897274256,2.03242,4453.0,4452.7,3.2078]
[1759897274257,1.30073,4452.8,4452.7,0.226]
[1759897274458,1.30078,4452.3,4452.2,3.2078]
[1759897274651,1.30078,4452.3,4452.2,3.4338]
[1759897274850,2.03248,4452.3,4452.2,3.4338]
[1759897275250,2.03248,4452.3,4452.2,3.2078]
[1759897275458,2.03248,4452.3,4452.2,3.4338]
[1759897276361,2.03248,4452.3,4452.2,3.8851]
[1759897276660,2.03248,4452.3,4452.2,5.0714]
[1759897276956,2.03248,4452.3,4452.2,4.363]
[1759897277158,2.03248,4452.3,4452.2,3.4338]
[1759897277656,2.03248,4452.3,4452.2,3.2078]
[1759897278957,0.40411,4452.0,4451.7,4.81017226]
[1759897279157,1.1807,4451.8,4451.7,5.26147226]
[1759897279358,0.2768,4452.5,4451.7,5.47553]
[1759897279554,1.5848,4452.1,4452.0,1.6376]
[1759897279860,2.0325,4452.1,4452.0,0.226]
[1759897281458,2.0325,4452.1,4452.0,0.6773]
[1759897282560,1.9052,4452.0,4451.9,1.19974171]
[1759897282757,0.7317,4451.8,4451.7,3.4338]
[1759897282958,1.6284,4451.8,4451.7,3.4338]
[1759897284355,1.57765,4451.5,4451.4,1.19974171]
[1759897284562,2.30935,4451.5,4451.4,0.226]
[1759897284756,2.30935,4451.5,4451.3,0.00213736]
[1759897288562,0.226,4451.4,4451.3,0.00213736]
[1759897288761,1.8544,4451.4,4451.3,0.00213736]
[1759897291570,1.6284,4451.4,4451.3,0.00213736]
[1759897291775,1.8544,4451.4,4451.3,0.00213736]
[1759897292165,1.8544,4451.4,4451.3,1.63973736]
[1759897292166,0.449,4451.4,4451.3,1.63973736]
[1759897292767,1.6284,4451.4,4451.3,1.70129852]
[1759897293069,1.6284,4451.4,4451.3,1.22339852]
[1759897293864,1.6284,4451.4,4451.3,0.00213736]
[1759897294964,1.8544,4451.4,4451.3,0.00213736]
[1759897295161,4.72603317,4451.4,4451.3,0.00213736]
[1759897295865,4.50003317,4451.4,4451.3,0.00213736]
[1759897296065,1.8544,4451.4,4451.3,0.00213736]
[1759897296267,1.8544,4451.4,4451.3,0.47293736]
[1759897296570,1.6284,4451.4,4451.3,0.47293736]
[1759897297566,1.6284,4451.4,4451.3,0.00213736]
[1759897302467,0.2705,4451.0,4450.8,1.19974171]
[1759897302666,0.8897,4450.6,4450.5,3.2078]
[1759897302869,1.5817,4450.6,4450.5,3.2078]
[1759897303168,1.56444,4450.5,4450.3,0.226]
[1759897303372,1.98596,4450.3,4450.2,0.68]
[1759897303669,1.98758169,4450.3,4450.2,0.68288844]
[1759897306277,1.58332169,4450.3,4450.2,1.13698844]
[1759897306779,1.58332169,4450.3,4450.2,1.83118844]
[1759897307073,1.58332169,4450.3,4450.2,0.45688844]
[1759897307278,1.58332169,4450.3,4450.2,0.22888844]
[1759897307672,1.58332169,4450.3,4450.2,0.68288844]
[1759897308479,0.00162169,4450.3,4450.2,3.03588277]
[1759897308777,1.14842169,4450.3,4450.2,3.03588841]
[1759897309175,1.14842169,4450.3,4450.2,1.83118844]
[1759897309375,1.14842169,4450.3,4450.2,3.03639815]
[1759897310074,1.14842169,4450.3,4450.2,2.81039815]
[1759897310276,1.58332169,4450.3,4450.2,1.60518844]
[1759897310578,1.58332169,4450.3,4450.2,1.13698844]
[1759897310981,1.58332169,4450.3,4450.2,0.45688844]
[1759897311282,1.58332169,4450.3,4450.2,1.88869511]
[1759897311665,1.14842169,4450.3,4450.2,3.03699511]
[1759897311867,1.14842169,4450.3,4450.2,1.83118844]
[1759897312269,1.58332169,4450.3,4450.2,1.83118844]
[1759897312976,1.58332169,4450.3,4450.2,2.343303]
[1759897313378,1.58332169,4450.3,4450.2,1.13698844]
[1759897313977,1.58332169,4450.3,4450.2,1.20925845]
[1759897314280,1.58332169,4450.3,4450.2,0.00288844]
[1759897314978,1.58332169,4450.3,4450.2,1.20954658]
[1759897316981,1.58332169,4450.3,4450.2,0.00288844]
[1759897317274,1.98602,4449.6,4449.4,1.20665814]
[1759897317479,1.8522,4449.5,4449.4,1.20665814]
[1759897317676,1.29404,4449.4,4449.3,5.18496861]
[1759897317872,1.98604,4449.4,4449.3,5.18496861]
[1759897318071,1.98604,4449.4,4449.3,5.18748122]
[1759897319378,1.98604,4449.4,4449.3,0.00251261]
[1759897320877,1.98611,4448.7,4448.6,1.20665814]
[1759897321084,1.98611,4448.7,4448.6,0.226]
[1759897321476,1.29411,4448.7,4448.5,1.20665814]
[1759897321677,0.2705,4449.5,4449.1,0.40437]
[1759897321879,2.25654,4449.5,4449.4,2.37281047]
[1759897322083,1.98604,4449.5,4449.4,2.37281047]
[1759897322280,2.25654,4449.5,4449.4,1.67861047]
[1759897322477,1.98606,4449.2,4449.1,1.20817282]
[1759897322678,1.98606,4449.2,4449.1,2.65868329]
[1759897322879,1.98606,4449.2,4449.1,1.45222967]
[1759897324991,1.5817,4449.2,4449.1,3.00489967]
[1759897325287,3.86082169,4450.3,4449.8,0.6758]
[1759897325486,4.75242169,4450.3,4450.2,0.8867]
[1759897325684,5.15668169,4450.3,4450.2,0.8867]
[1759897325984,4.10102169,4450.3,4450.2,0.4423]
[1759897326589,1.29587,4450.2,4450.1,0.77051047]
[1759897326780,1.94727,4450.2,4450.1,0.77051047]
[1759897327288,1.543,4450.0,4449.9,1.96679]
[1759897327678,1.543,4450.0,4449.9,1.5625]
[1759897328595,1.8002,4450.0,4449.9,0.8867]
[1759897329897,1.8002,4450.0,4449.9,0.4423]
[1759897330491,1.8002,4450.0,4449.5,4.41360991]
[1759897330492,1.29591,4449.7,4449.5,4.41360991]
[1759897330691,1.543,4449.6,4449.5,4.41360991]
[1759897331390,1.543,4449.6,4449.5,1.20580991]
[1759897331586,1.0838,4449.4,4449.3,1.20580991]
[1759897331790,1.543,4449.4,4449.3,1.20580991]
[1759897332184,1.94735,4449.3,4449.1,0.0017192]
[1759897332384,4.0994,4449.2,4449.1,0.0017192]
[1759897332689,7.60573688,4449.2,4449.1,0.0017192]
[1759897333085,8.56552113,4449.2,4449.1,0.0017192]
[1759897333284,8.56552113,4449.2,4448.4,4.41360991]
[1759897333285,2.20462,4448.5,4448.4,3.2078]
[1759897333487,2.20462,4448.5,4448.0,1.20580991]
[1759897333488,0.6514,4448.2,4448.0,1.20580991]
[1759897333685,0.4832,4448.5,4448.0,1.20580991]
[1759897333686,1.94746,4448.1,4448.0,1.20580991]
[1759897334292,1.8002,4448.0,4447.9,4.41360991]
[1759897334594,1.8002,4448.0,4447.9,4.41524651]
[1759897334897,1.8002,4448.0,4447.9,3.2094366]
[1759897335392,4.98810368,4448.0,4447.9,0.4439366]
[1759897335581,2.0262,4448.0,4447.9,0.0016366]
[1759897335983,0.4324,4448.0,4447.9,1.84812085]
[1759897336289,3.2078,4448.7,4448.5,0.6758]
[1759897336290,0.6514,4448.7,4448.5,0.6758]
[1759897336489,0.4324,4448.6,4448.5,1.86158425]
[1759897336692,1.48819,4448.9,4448.8,1.5625]
[1759897336992,1.94741,4448.6,4448.5,0.9018]
[1759897337288,1.94741,4448.6,4448.5,0.6683]
[1759897337590,0.4044,4448.8,4448.5,1.7885]
[1759897337785,0.4044,4448.8,4448.7,1.5625]
[1759897338089,1.94741,4448.6,4448.5,3.2078]
[1759897338294,1.94741,4448.6,4448.5,0.226]
[1759897338498,1.94741,4448.6,4448.5,1.1127]
[1759897338791,1.94741,4448.6,4448.5,1.7885]
[1759897339793,1.48821,4448.6,4448.5,1.7885]
[1759897341791,1.48821,4448.6,4448.5,0.226]
[1759897341792,1.94741,4448.6,4448.5,0.226]
[1759897341993,1.94741,4448.6,4448.4,3.2078]
[1759897342193,1.8002,4448.5,4448.4,3.2078]
[1759897342404,1.8002,4448.5,4448.4,3.8761]
[1759897342601,0.40442,4448.6,4448.5,1.8246]
[1759897342894,1.94742,4448.6,4448.5,1.5625]
[1759897343099,1.94742,4448.6,4448.5,0.4423]
[1759897344091,1.94742,4448.6,4448.5,0.8867]
[1759897344595,1.94742,4448.6,4448.4,3.4338]
[1759897344596,1.94742,4448.6,4448.4,3.2078]
[1759897344795,1.8002,4448.5,4448.4,3.2078]
[1759897345297,1.8002,4448.5,4448.4,4.7703]
[1759897345298,1.543,4448.5,4448.4,4.7703]
[1759897345799,1.543,4448.5,4448.4,4.9963]
[1759897346201,1.8002,4448.5,4448.4,3.2078]
[1759897346503,1.8002,4448.5,4447.9,0.6774366]
[1759897346504,2.20467,4448.0,4447.9,3.2094366]
[1759897346996,1.8002,4448.0,4447.9,3.2094366]
[1759897347200,1.8002,4448.0,4447.9,3.6517366]
[1759897348600,1.8002,4448.0,4447.9,4.5006166]
[1759897348898,1.8002,4448.0,4447.9,4.7719366]
[1759897349603,1.543,4448.0,4447.9,4.7719366]
[1759897349911,0.9086,4448.5,4448.3,0.40444]
[1759897350102,1.0838,4449.0,4448.9,1.5625]
[1759897350496,1.8002,4449.0,4448.9,0.4423]
[1759897350698,1.8002,4449.0,4448.7,0.226]
[1759897350699,1.543,4448.8,4448.7,0.226]
[1759897351207,2.20462,4448.5,4448.4,3.2078]
[1759897351408,2.20462,4448.5,4448.4,3.4338]
[1759897352007,2.20462,4448.5,4448.4,3.2078]
[1759897352205,2.20462,4448.5,4448.4,3.4338]
[1759897352406,2.20462,4448.5,4448.4,3.2078]
[1759897354910,2.20462,4448.5,4448.4,3.6501]
[1759897355105,0.6446,4448.9,4448.4,3.61223]
[1759897355302,2.19709,4448.9,4448.8,0.4443]
[1759897355497,1.97109,4448.9,4448.8,0.4443]
[1759897355699,0.40439,4448.9,4448.8,1.5117]
[1759897356000,3.465,4449.5,4448.8,1.91609]
[1759897356001,0.40438,4449.0,4448.8,1.91609]
[1759897356197,0.40438,4449.0,4448.9,1.5117]
[1759897356509,1.50898,4449.0,4448.9,1.5117]
[1759897356709,1.3265,4448.8,4448.7,0.226]
[1759897357004,1.32651,4448.6,4448.5,0.4443]
[1759897357212,1.97111,4448.6,4448.5,0.226]
[1759897357412,1.97111,4448.6,4448.4,3.2078]
[1759897357413,1.8353,4448.5,4448.4,3.2078]
[1759897357604,1.8353,4448.5,4448.4,3.4338]
[1759897358108,1.5667,4448.5,4448.4,4.9455]
[1759897359103,0.40439,4448.9,4448.7,0.8743]
[1759897359409,0.40439,4448.9,4448.8,1.5117]
[1759897359604,1.51649,4448.9,4448.8,1.7377]
[1759897359910,1.01076,4449.9,4448.8,2.69807051]
[1759897359911,3.691,4449.5,4448.8,2.69807051]
[1759897360105,0.6521,4449.5,4449.4,1.1195]
[1759897360301,0.6521,4449.5,4449.4,1.5562]
[1759897360502,1.0923,4449.5,4449.4,1.5562]
[1759897360907,0.00162169,4450.3,4450.1,0.40427]
[1759897361102,0.6521,4450.5,4450.4,0.6855]
[1759897361306,1.0923,4450.5,4450.4,1.5562]
[1759897361510,1.0923,4450.5,4450.4,1.73226844]
[1759897362007,1.09478467,4450.5,4450.4,4.94006844]
[1759897362208,0.00248467,4450.5,4450.4,4.94006844]
[1759897362409,1.54668467,4450.5,4450.4,4.0785]
[1759897362615,1.81608467,4450.5,4450.4,3.2078]
[1759897362817,1.94845,4450.4,4450.3,0.226]
[1759897363009,0.27188467,4450.5,4449.8,44.0078]
[1759897363010,1.0923,4449.9,4449.8,44.0078]
[1759897363313,1.0923,4449.9,4449.8,3.2078]
[1759897363314,1.5442,4449.9,4449.8,3.2078]
[1759897363707,0.8921,4449.6,4449.5,0.226]
[1759897364014,1.5442,4449.6,4449.5,0.226]
[1759897364211,1.94852,4449.6,4449.5,0.226]
[1759897365111,1.5442,4449.6,4449.5,0.226]
[1759897365309,1.5442,4449.6,4449.5,1.06433]
[1759897365611,0.2694,4450.0,4449.5,1.7822]
[1759897365816,0.40428,4450.1,4450.0,1.5562]
[1759897366006,1.05637,4450.2,4450.1,0.6855]
[1759897366210,1.94847,4450.2,4450.1,0.434]